[Event "Frauenbundesliga 2021-22"]
[Site "Germany"]
[Date "2022.05.29"]
[Round "11.3"]
[White "Javakhishvili, Lela"]
[Black "Schleining, Zoya"]
[Result "1/2-1/2"]
[ECO "A85"]
[WhiteElo "2480"]
[BlackElo "2329"]
[Annotator "TA"]
[PlyCount "150"]
[EventDate "2021.11.26"]
[EventType "team-tourn"]
[EventCountry "GER"]
[SourceTitle "playchess.com"]
[Source "ChessBase"]
[SourceQuality "1"]
[WhiteTeam "Schwaebisch Hall"]
[BlackTeam "Deizisau"]
[TimeControl "40/5400+30:1800+30"]

{[%evp 9,150,-8,18,13,12,-27,-16,-35,-26,-6,14,20,2,-13,-12,-27,-30,-166,-128,-179,-168,-227,-222,-221,-229,-230,-221,-390,-237,-466,-455,-425,-394,-405,-293,-275,-250,-268,-249,-254,-212,-222,-187,-358,-343,-361,-350,-400,-281,-491,-513,-639,-611,-1176,-1176,-1037,-825,-1103,-486,-412,0,-126,0,-73,-73,-371,-341,-1100,-1062,-506,-128,-129,-128,-130,-129,-128,-128,-130,-129,-182,0,0,0,0,0,0,0,-7,-8,-73,0,-8,-8,-8,-8,-8,-8,-8,-8,-73,-73,-73,-73,-73,-73,-73,-73,-73,0,-73,-73,-73,-73,-73,-73,-73,-73,-73,-73,-73,-73,-73,-73,-73,-73,-73,-73,-73,-73,-73,-73,-73,-74,-74,-73,-74,-74,-74,-74,-74,-66,-66,0]} 1. d4 {[%emt 0:00:03]} e6 {[%emt 0:00:05]} 2. c4 {[%emt 0:00:35]} f5 {[%emt 0:00:11]} 3. Nc3 {[%emt 0:02:19]} Nf6 {[%emt 0:00:27]} 4. Qc2 {[%emt 0:00:14]} b6 {[%emt 0:03:30]} 5. f3 {[%emt 0:06:14]} Nc6 {[%emt 0:09:26]} 6. e3 {[%emt 0:00:38] [#] A85: Dutch Defence: 2 c4 Nf6 3 Nc3.} g6 $146 {[%emt 0:10:12]} ({Predecessor:} 6... Bb4 7. Bd2 a5 8. Bd3 e5 9. d5 e4 10. fxe4 fxe4 11. Nxe4 Nxe4 12. Bxe4 Bxd2+ 13. Kxd2 {½-½ (22) Polugaevsky,L-Antoshin,V Baku 1958}) 7. Nge2 {[%emt 0:03:39]} Bh6 {[%emt 0:02:20]} 8. a3 {[%emt 0:02:43] The position is equal.} a5 {[%emt 0:04:01]} 9. Bd2 {[%emt 0:08:22]} O-O {[%emt 0:01:38]} (9... Ba6 $5 {[%cal Ra6c4]}) 10. h4 {[%emt 0:02:58][%cal Oh4h5]} Ba6 {[%emt 0:08:13]} 11. h5 {[%emt 0:03:26]} gxh5 {[%emt 0:06:57]} ({But not} 11... Nxh5 12. g4 $16) 12. b3 {[%emt 0:28:45]} Qe7 {[%emt 0:00:54]} 13. e4 {[%emt 0:02:19]} (13. g3 $11) 13... Bxd2+ $19 {[%emt 0:01:08]} 14. Qxd2 {[%emt 0:00:06]} (14. Kxd2 $17 fxe4 15. Nxe4) 14... fxe4 {[%emt 0:00:46]} 15. Nxe4 {[%emt 0:05:23]} (15. Qg5+ $142 Qg7 16. Qxg7+ Kxg7 17. Nxe4) 15... Nxe4 {[%emt 0:03:17]} 16. fxe4 {[%emt 0:00:02]} a4 {[%emt 0:06:37]} 17. b4 {[%emt 0:14:23]} Bxc4 {[%emt 0:00:30]} 18. O-O-O $2 {[%emt 0:00:28]} (18. Rc1 b5 19. Ng3) 18... h4 {[%emt 0:06:15]} 19. g3 $2 {[%emt 0:00:58]} (19. Qe3 {is a better defense.}) 19... Rf3 {[%emt 0:01:14][%csl LRa3,LRg3]} 20. Nc3 {[%emt 0:05:01]} Bxf1 {[%emt 0:01:53]} 21. Rdxf1 {[%emt 0:00:02]} Rxf1+ {[%emt 0:08:26]} 22. Rxf1 {[%emt 0:00:01]} hxg3 {[%emt 0:00:58] And now ...Rf8 would win.} 23. Rg1 {[%emt 0:02:24]} Kh8 {[%emt 0:03:14]} 24. Rxg3 {[%emt 0:00:07]} Rg8 {[%emt 0:01:38]} 25. Rxg8+ {[%emt 0:04:07]} Kxg8 {[%emt 0:00:02][%mdl 4096] Endgame KQN-KQN} 26. e5 $2 {[%emt 0:02:21]} (26. d5 exd5 27. Qxd5+ Kg7 28. Nxa4) 26... Qg7 {[%emt 0:03:02]} 27. Qe3 {[%emt 0:01:29]} Ne7 {[%emt 0:02:18]} 28. Qf2 {[%emt 0:01:26]} Nd5 {[%emt 0:02:35]} 29. Nxa4 {[%emt 0:01:53]} (29. Nxd5 exd5 30. Qh4) 29... Qg5+ {[%emt 0:01:12]} 30. Kb2 {[%emt 0:00:11]} h5 {[%emt 0:00:34][%cal Bh7h5,Bh5h4][%mdl 32] Hoping for ...h4.} 31. Nc3 {[%emt 0:00:08]} Nxc3 {[%emt 0:00:58]} 32. Kxc3 {[%emt 0:00:01] KQ-KQ} h4 {[%emt 0:01:28]} 33. Kc4 {[%emt 0:01:18]} c6 {[%emt 0:03:45]} (33... h3 $142 34. Kd3 Qh5 35. Qg1+ Kf7) 34. a4 {[%emt 0:00:04]} Qc1+ $2 {[%emt 0:02:16]} (34... b5+ $19 35. axb5 cxb5+ 36. Kxb5 h3) 35. Kd3 {[%emt 0:02:08]} (35. Kb3 $1 $11 {was the only way to keep the balance.}) 35... Qd1+ {[%emt 0:01:21]} (35... Qa3+ $1 $17 36. Ke4 h3) 36. Ke4 {[%emt 0:01:17]} (36. Kc3 $1 $11) 36... Qb1+ $17 {[%emt 0:00:50]} ({Don't play} 36... Qxa4 37. Qxh4 Qc2+ 38. Ke3 $11) 37. Kf4 $2 {[%emt 0:00:24][%mdl 8192]} (37. Ke3 $17 {might work better.}) 37... Qxb4 $19 {[%emt 0:00:58]} 38. Qg1+ $2 {[%emt 0:00:46]} (38. Kg4 Qxa4 39. Qf4 Qd1+ 40. Kxh4 Qh1+ 41. Kg4) 38... Kh7 {[%emt 0:00:40] Strongly threatening ...Qf8+.} 39. Kg4 {[%emt 0:00:22]} Qe7 $2 {[%emt 0:00:54]} (39... Qf8 $19 {and Black stays clearly on top. ( -> ...Qg8+)} 40. Qe3 Qd8) 40. Qb1+ $17 {[%emt 0:00:15]} Kh6 {[%emt 0:00:59]} 41. Qc1+ {[%emt 0:07:33]} Kg7 {[%emt 0:00:30]} 42. Qb2 {[%emt 0:01:40]} Qd8 {[%emt 0:02:08]} 43. Qb4 {[%emt 0:04:26]} Kf7 {[%emt 0:01:30]} 44. Qb2 {[%emt 0:02:03] [#]} (44. Qb1 $17) 44... b5 $2 {[%emt 0:16:54]} (44... d6 $1 $19 {...dxe5 is the strong threat.} 45. exd6 Qxd6 46. Kxh4 b5 47. axb5 Qf4+ 48. Kh3 Qf1+ 49. Kg3 cxb5) 45. axb5 $11 {[%emt 0:01:10]} Qg8+ {[%emt 0:01:01]} 46. Kxh4 {[%emt 0:00:15]} Qh7+ {[%emt 0:00:08]} 47. Kg5 {[%emt 0:05:08]} Qf5+ {[%emt 0:00:29]} 48. Kh4 {[%emt 0:00:04]} Qe4+ {[%emt 0:01:16]} 49. Kg5 {[%emt 0:00:45] [#]} (49. Kh5 $1 $11) 49... Qf5+ {[%emt 0:00:48]} (49... cxb5 $1 $17 {Threatening ...Qe3+.} 50. Qxb5 Qe3+ 51. Kh5 Qxd4 52. Qf1+ Ke8) 50. Kh4 {[%emt 0:00:04]} Qf4+ {[%emt 0:00:28]} 51. Kh5 {[%emt 0:01:23]} cxb5 {[%emt 0:05:06]} 52. Qxb5 {[%emt 0:00:08]} Qxd4 {[%emt 0:00:31] aiming for ...Qd1+.} 53. Qf1+ {[%emt 0:04:41]} Ke8 {[%emt 0:00:12]} 54. Qb5 {[%emt 0:01:44]} (54. Qf6 $1 $11) 54... Qd5 {[%emt 0:01:08]} 55. Qb8+ {[%emt 0:00:13]} Kf7 {[%emt 0:00:36]} 56. Qc7 {[%emt 0:01:07]} Qd4 {[%emt 0:01:51]} 57. Kg5 {[%emt 0:00:34]} Kg7 {[%emt 0:01:31]} 58. Kh5 {[%emt 0:00:35]} Kf7 {[%emt 0:00:58]} 59. Kg5 {[%emt 0:00:07]} Ke7 {[%emt 0:00:32]} 60. Qb8 {[%emt 0:01:31]} Qg1+ {[%emt 0:00:29]} 61. Kh5 {[%emt 0:01:31]} Kf7 {[%emt 0:01:11] Threatens to win with ...Qg6+.} 62. Qc7 {[%emt 0:00:26]} Qg6+ {[%emt 0:00:32]} 63. Kh4 {[%emt 0:00:02]} Qe4+ {[%emt 0:00:18]} 64. Kg5 {[%emt 0:00:55]} Qe3+ {[%emt 0:00:26]} 65. Kh5 {[%emt 0:00:10]} Qe2+ {[%emt 0:00:40]} 66. Kg5 {[%emt 0:00:09]} Qd2+ {[%emt 0:00:07]} 67. Kh5 {[%emt 0:00:09]} Kg7 {[%emt 0:00:57]} 68. Qb8 {[%emt 0:00:34]} Qh2+ {[%emt 0:00:59]} 69. Kg4 {[%emt 0:00:38]} Qg2+ {[%emt 0:00:25]} 70. Kh5 {[%emt 0:01:01]} Qg6+ {[%emt 0:00:17]} 71. Kh4 {[%emt 0:00:02]} Qf7 {[%emt 0:01:06]} 72. Kg5 {[%emt 0:00:40]} Qf5+ {[%emt 0:01:03]} 73. Kh4 {[%emt 0:00:02]} Qh7+ {[%emt 0:00:58]} 74. Kg5 {[%emt 0:00:09]} Qh6+ {[%emt 0:01:17]} 75. Kg4 {[%emt 0:00:07]} Qg6+ {[%emt 0:01:29] And White is the lucky defender.  Weighted Error Value: White=0.68/Black=0.43} ({Black should play} 75... Qh1 $15) 1/2-1/2

[Event "Frauenbundesliga 2021-22"]
[Site "Germany"]
[Date "2022.05.29"]
[Round "11.3"]
[White "Melamed, Tatjana"]
[Black "Paehtz, Elisabeth"]
[Result "1/2-1/2"]
[ECO "B22"]
[WhiteElo "2353"]
[BlackElo "2497"]
[Annotator "TA"]
[PlyCount "42"]
[EventDate "2021.11.26"]
[EventType "team-tourn"]
[EventCountry "GER"]
[SourceTitle "playchess.com"]
[Source "ChessBase"]
[SourceQuality "1"]
[WhiteTeam "Bad Koenigshofen"]
[BlackTeam "Baden-Baden"]
[TimeControl "40/5400+30:1800+30"]

{[%evp 14,42,3,0,6,0,11,10,17,16,24,16,20,14,15,0,32,33,35,24,27,8,14,20,24,10,27,16,13,14,29]} 1. e4 {[%emt 0:00:03][%cal Be2e4,Be4e5][%mdl 32]} c5 {[%emt 0:00:04]} 2. c3 {[%emt 0:01:39]} Nf6 {[%emt 0:00:05]} 3. e5 {[%emt 0:00:04]} Nd5 {[%emt 0:00:03]} 4. d4 {[%emt 0:00:03]} cxd4 {[%emt 0:00:27]} 5. cxd4 {[%emt 0:00:04]} d6 {[%emt 0:00:29]} 6. Nf3 {[%emt 0:00:04]} Nc6 {[%emt 0:00:03]} 7. Bc4 {[%emt 0:00:34]} dxe5 {[%emt 0:00:06]} 8. dxe5 {[%emt 0:03:03]} Nb6 {[%emt 0:00:05] B22: Sicilian: 2 c3.} 9. Qxd8+ {[%emt 0:01:53]} Nxd8 {[%emt 0:00:05]} 10. Bb3 {[%emt 0:02:26]} g6 {[%emt 0:00:14]} 11. Nd4 {[%emt 0:05:49]} Bg7 {[%emt 0:00:05]} 12. f4 {[%emt 0:00:32]} Bd7 {[%emt 0:00:05]} 13. Nc3 {[%emt 0:02:52] [#]} Nc6 $146 {[%emt 0:05:20]} ({Predecessor:} 13... a6 14. Nd5 Nxd5 15. Bxd5 Rc8 16. Be3 e6 17. Bf3 O-O 18. O-O f6 19. exf6 Bxf6 {½-½ (49) Oesch,H (2336)-Ojeda,J (2311) ICCF email 2013}) 14. Be3 {[%emt 0:08:54][%cal Bc1e3,Be3d4,Bd4c5][%mdl 32]} Nxd4 {[%emt 0:18:23]} 15. Bxd4 {[%emt 0:00:04]} Bc6 {[%emt 0:00:04]} 16. O-O $36 {[%emt 0:06:16][%mdl 2048] Black is under pressure.} e6 {[%emt 0:03:51]} 17. Bc5 {[%emt 0:10:35]} O-O-O {[%emt 0:03:43]} 18. Rad1 {[%emt 0:02:53]} Rxd1 {[%emt 0:00:35]} 19. Rxd1 {[%emt 0:00:06]} Bf8 {[%emt 0:00:08]} 20. Bxf8 {[%emt 0:03:35]} Rxf8 {[%emt 0:00:05]} 21. Kf2 {[%emt 0:00:09]} h5 {[%emt 0:00:44] Weighted Error Value: White=0.05 (flawless) /Black=0.06 (flawless)} 1/2-1/2

[Event "Frauenbundesliga 2021-22"]
[Site "Germany"]
[Date "2022.05.29"]
[Round "11.3"]
[White "Movsesian, Julia"]
[Black "Duessler, Stefanie"]
[Result "1-0"]
[ECO "B23"]
[WhiteElo "2313"]
[BlackElo "2110"]
[Annotator "TA"]
[PlyCount "39"]
[EventDate "2021.11.26"]
[EventType "team-tourn"]
[EventCountry "GER"]
[SourceTitle "playchess.com"]
[Source "ChessBase"]
[SourceQuality "1"]
[WhiteTeam "Rodewisch"]
[BlackTeam "Lehrte"]
[TimeControl "40/5400+30:1800+30"]

{[%evp 10,39,8,7,18,25,17,24,38,20,15,18,41,40,66,67,97,117,152,147,838,850,848,841,810,845,1078,1042,1089,898,1159,1131]} 1. e4 {[%emt 0:00:02]} c5 {[%emt 0:00:05]} 2. Nc3 {[%emt 0:00:05]} Nc6 {[%emt 0:00:07]} 3. Bb5 {[%emt 0:00:05]} Nd4 {[%emt 0:02:52]} 4. Nf3 {[%emt 0:00:08]} Nxb5 {[%emt 0:01:23]} 5. Nxb5 {[%emt 0:00:05]} d6 {[%emt 0:00:37]} 6. d4 {[%emt 0:01:22]} Bd7 {[%emt 0:03:44] B23: Closed Sicilian: Lines without g3.} 7. Nc3 {[%emt 0:00:29]} cxd4 {[%emt 0:03:45]} 8. Qxd4 {[%emt 0:00:05]} Nf6 {[%emt 0:04:59] White has an edge.} 9. O-O {[%emt 0:01:29]} e5 {[%emt 0:03:27]} 10. Qd3 {[%emt 0:00:50]} Be7 {[%emt 0:00:09]} 11. Bg5 {[%emt 0:00:57]} Bc6 {[%emt 0:05:38] [#]} 12. Rad1 $146 {[%emt 0:03:36]} ({Predecessor:} 12. Rfd1 Qa5 13. a3 Qa6 14. Bxf6 Qxd3 15. Rxd3 gxf6 16. Nh4 Bd7 17. Nd5 Rc8 18. Ne3 {½-½ (32) Oyama,A (2185)-Wegerle,J (2421) Hastings 2018}) 12... Nh5 {[%emt 0:04:21]} 13. Bxe7 {[%emt 0:01:32] White is more active.} Kxe7 {[%emt 0:00:19]} 14. Nxe5 {[%emt 0:01:23]} Qc7 $2 {[%emt 0:09:01][%mdl 8192] [#]} (14... dxe5 $16 15. Qf3 (15. Qc4 $2 Qb6 $17) 15... Qe8) 15. Qc4 $1 $18 {[%emt 0:02:57] White is clearly winning.} Kf8 {[%emt 0:05:15]} 16. Nb5 {[%emt 0:02:23][%cal Bc3b5,Bb5d6,Bd6f5][%mdl 32] Pair of Knights!} Qe7 {[%emt 0:00:37] [#]} 17. Nxd6 $1 {[%emt 0:02:02]} Nf4 {[%emt 0:01:28]} (17... Bd7 18. Nxd7+) 18. Nxc6 {[%emt 0:01:18]} bxc6 {[%emt 0:00:05]} 19. Nf5 {[%emt 0:00:08]} Qe5 {[%emt 0:01:16]} 20. Rd7 {[%emt 0:02:19] Black got outplayed after the opening.  Weighted Error Value: White=0.06 (flawless) /Black=0.24 (precise)} 1-0

[Event "Frauenbundesliga 2021-22"]
[Site "Germany"]
[Date "2022.05.29"]
[Round "11.3"]
[White "Otikova, Elina"]
[Black "Gaal, Zsoka"]
[Result "0-1"]
[ECO "B15"]
[WhiteElo "2090"]
[BlackElo "2323"]
[Annotator "TA"]
[PlyCount "108"]
[EventDate "2021.11.26"]
[EventType "team-tourn"]
[EventCountry "GER"]
[SourceTitle "playchess.com"]
[Source "ChessBase"]
[SourceQuality "1"]
[WhiteTeam "Loeberitz"]
[BlackTeam "Hamburger SK"]
[TimeControl "40/5400+30:1800+30"]

{[%evp 15,108,19,19,11,0,6,18,0,0,0,0,0,6,11,0,-41,-35,-51,0,0,0,0,0,0,39,4,18,0,45,0,0,-103,-101,-97,-106,-98,-98,-100,-100,-97,-97,-186,-159,-257,-257,-306,-316,-298,-286,-283,-175,-178,-161,-183,-135,-181,-181,-205,-187,-181,-102,-181,-44,-181,-181,-181,-181,-199,-208,-238,-246,-246,-253,-360,-344,-633,-631,-619,-561,-1567,-1460,-2522,-2018,-29975,-29976,-29976,-29977,-29977,-29977,-29978,-29979,-29982,-29983,-29983,-29984]} 1. e4 {[%emt 0:00:03]} c6 {[%emt 0:00:15]} 2. d4 {[%emt 0:00:07]} d5 {[%emt 0:00:07]} 3. Nd2 {[%emt 0:00:12]} dxe4 {[%emt 0:00:10]} 4. Nxe4 {[%emt 0:00:07]} Nf6 {[%emt 0:00:10]} 5. Nxf6+ {[%emt 0:00:34]} exf6 {[%emt 0:00:08]} 6. c3 {[%emt 0:00:36]} Bd6 {[%emt 0:00:15]} 7. Bd3 {[%emt 0:00:34]} O-O {[%emt 0:00:21]} 8. Ne2 {[%emt 0:00:27]} Re8 {[%emt 0:00:16]} 9. h3 {[%emt 0:02:17] B15: Caro-Kann: 3 Nc3: 3...g6 and 3...dxe4 4 Nxe4 Nf6 5 Nxf6+ exf6.} Nd7 {[%emt 0:00:55][%cal Bb8d7,Bd7f8,Bf8g6][%mdl 32]} 10. O-O {[%emt 0:00:17]} Nf8 {[%emt 0:03:05]} 11. Be3 {[%emt 0:01:39] [#] The position is equal.} Ng6 $146 {[%emt 0:03:11]} ({Predecessor:} 11... Qc7) 12. Qc2 {[%emt 0:00:55]} Bc7 {[%emt 0:06:14]} 13. Rfe1 {[%emt 0:03:38]} (13. Bxg6 hxg6 14. Rfe1 Bf5 $15) 13... Be6 {[%emt 0:31:00]} 14. Rad1 {[%emt 0:04:35]} Qd7 {[%emt 0:02:30]} 15. Bxg6 {[%emt 0:11:55]} hxg6 {[%emt 0:00:38]} 16. Bf4 {[%emt 0:00:25]} g5 {[%emt 0:09:10]} (16... Bxa2 17. Bxc7 Qxc7 18. b3 $16) (16... Ba5 $15) 17. Bxc7 $11 {[%emt 0:04:10]} Qxc7 {[%emt 0:00:09]} 18. Ng3 {[%emt 0:07:06]} g6 {[%emt 0:01:03]} 19. c4 {[%emt 0:00:56]} Qa5 {[%emt 0:07:52]} 20. b3 {[%emt 0:08:23][%cal Bb2b3,Bb3b4][%mdl 32]} (20. Ne4 $5 {[%cal Re4f6]} Kg7 21. Nd6 $16) 20... Rad8 {[%emt 0:05:12]} 21. Qb2 {[%emt 0:02:52]} Kg7 {[%emt 0:03:55]} 22. b4 {[%emt 0:18:36]} (22. Ne4 $5 {[%cal Rd4d5]} Bf5 23. b4 $16) 22... Qa4 {[%emt 0:05:04]} 23. Ne4 {[%emt 0:13:28]} (23. Qc3 $11) 23... Bxc4 $17 {[%emt 0:02:36][%cal Oe8e4]} 24. Nxf6 {[%emt 0:01:27]} Rxe1+ {[%emt 0:01:34]} (24... Kxf6 $2 25. d5+ Kf5 26. g4+ Kf4 27. Qf6#) 25. Rxe1 {[%emt 0:00:05] [#] Threatens to win with d5.} Qxa2 {[%emt 0:00:25]} 26. Qc3 {[%emt 0:01:05]} Qb3 {[%emt 0:01:31]} 27. Qa1 {[%emt 0:00:07] Black must now prevent d5.} Bd5 $36 {[%emt 0:00:52][%mdl 2048] Black is really pushing.} (27... Qxb4 28. d5 Kh6 29. h4 Bxd5 30. Ne8 Rxe8 31. Rxe8 $18) 28. Nxd5 {[%emt 0:01:39]} (28. Ne8+ $17 {was the only chance.} Kf8 29. Nc7) 28... Rxd5 {[%emt 0:00:52][%mdl 4096] Endgame KQR-KQR} 29. Rb1 {[%emt 0:05:08]} (29. b5 $17) 29... Qc2 $19 {[%emt 0:01:58]} 30. Re1 {[%emt 0:02:16]} Qd2 {[%emt 0:01:34][%csl LRb4,LRd4]} 31. Rd1 {[%emt 0:00:46]} Qxb4 {[%emt 0:09:09]} 32. Qxa7 {[%emt 0:00:06]} b6 {[%emt 0:02:22][%cal Bb7b6,Bb6b5,Bb5a4][%mdl 32]} 33. Qa1 {[%emt 0:00:41]} b5 {[%emt 0:00:48]} 34. Rc1 {[%emt 0:00:51]} Qa4 {[%emt 0:01:04]} ({Stronger than} 34... Rxd4 35. Rxc6 Kh7 36. Rf6 $17) ({Weaker is} 34... Qxd4 35. Qxd4+ Rxd4 36. Rxc6 $17) ({Black should try} 34... Qd6 $19 35. Rd1 Kh7) 35. Qxa4 {[%emt 0:00:22]} (35. Qb2 $17) 35... bxa4 {[%emt 0:00:01]} 36. Rxc6 {[%emt 0:00:09]} Rxd4 $17 {[%emt 0:00:27] KR-KR} 37. Ra6 {[%emt 0:00:10]} Kf8 {[%emt 0:01:07]} (37... Rd1+ $19 38. Kh2 Ra1) 38. Ra7 {[%emt 0:00:32]} (38. Kf1 $17) 38... Rd1+ $19 {[%emt 0:00:40]} 39. Kh2 {[%emt 0:00:06] [#] White does not recover from this.} Ra1 $1 {[%emt 0:00:37]} 40. Ra5 {[%emt 0:02:58]} f6 {[%emt 0:00:29]} 41. Ra7 {[%emt 0:30:07]} a3 {[%emt 0:02:39]} 42. g4 {[%emt 0:00:00]} Ke8 {[%emt 0:03:12]} 43. Kg2 {[%emt 0:00:00]} Kd8 {[%emt 0:01:07]} 44. Kh2 {[%emt 0:00:00]} (44. Ra6 $142) 44... Kc8 {[%emt 0:11:40]} ({Wrong is} 44... a2 $2 45. Kg2 $19) 45. Rf7 $2 {[%emt 0:00:00]} (45. Kg2) 45... Rc1 {[%emt 0:01:09] ( -> ...a2)} 46. Ra7 {[%emt 0:00:00]} Rc3 {[%emt 0:00:01] ...Kb8 is the strong threat.} 47. Ra4 {[%emt 0:00:00]} Kb7 {[%emt 0:00:08]} 48. f4 {[%emt 0:00:00]} Kb6 {[%emt 0:02:09] Hoping for ...Kb5.} 49. fxg5 {[%emt 0:00:00]} fxg5 {[%emt 0:13:09] Black mates.} 50. Kg2 {[%emt 0:00:00]} Kb5 {[%emt 0:00:00]} 51. Ra8 {[%emt 0:00:00]} Kb4 {[%emt 0:00:00]} 52. Rb8+ {[%emt 0:00:00]} Kc4 {[%emt 0:00:00]} 53. Kh2 {[%emt 0:00:00]} a2 {[%emt 0:00:00]} 54. Ra8 {[%emt 0:00:00]} Kb3 {[%emt 0:00:00] Weighted Error Value: White=0.53/Black=0.09 (flawless)} 0-1

[Event "Frauenbundesliga 2021-22"]
[Site "Germany"]
[Date "2022.05.29"]
[Round "11.3"]
[White "Hincu, Olga"]
[Black "Radikovic, Anamarija"]
[Result "1-0"]
[ECO "D12"]
[WhiteElo "2078"]
[BlackElo "2133"]
[Annotator "TA"]
[PlyCount "105"]
[EventDate "2021.11.26"]
[EventType "team-tourn"]
[EventCountry "GER"]
[SourceTitle "playchess.com"]
[Source "ChessBase"]
[SourceQuality "1"]
[WhiteTeam "Leipzig"]
[BlackTeam "Harksheide"]
[TimeControl "40/5400+30:1800+30"]

{[%evp 15,105,24,15,16,48,33,70,70,85,51,93,65,147,132,127,81,98,98,108,79,81,87,110,97,131,94,90,124,106,86,97,64,62,75,84,-58,-8,0,0,9,105,81,109,0,42,0,99,-113,-120,-113,-125,-160,-159,-150,-174,-178,-181,-174,-182,-189,-196,-297,828,827,1341,1223,1962,1733,1765,1705,5539,5539,29980,29981,29981,29979,29983,29984,29984,29982,29983,29984,29986,29986,29986,29980,29982,29983,29991,29992,29992,29993]} 1. d4 {[%emt 0:00:03]} d5 {[%emt 0:00:06]} 2. Nf3 {[%emt 0:00:03]} Nf6 {[%emt 0:00:06]} 3. c4 {[%emt 0:00:03]} c6 {[%emt 0:00:05]} 4. e3 {[%emt 0:00:04]} Bf5 {[%emt 0:00:04]} 5. Nc3 {[%emt 0:00:15]} e6 {[%emt 0:00:05]} 6. Nh4 {[%emt 0:01:24]} Be4 {[%emt 0:00:06]} 7. f3 {[%emt 0:02:14]} Bg6 {[%emt 0:00:05]} 8. Qb3 {[%emt 0:01:41]} Qc7 {[%emt 0:00:12]} 9. Bd2 {[%emt 0:04:38] D12: Slav Defence: 3 Nf3 Nf6 4 e3 Bf5.} Nbd7 {[%emt 0:00:17]} 10. Rc1 {[%emt 0:02:06]} Qb8 {[%emt 0:06:34]} 11. cxd5 {[%emt 0:03:43] White is slightly better.} exd5 {[%emt 0:00:07] [#]} 12. g3 $146 {[%emt 0:02:56][%cal Oe3e4]} ({Predecessor:} 12. e4 dxe4 13. Bc4 e3 14. Bxe3 Bd6 15. Nxg6 fxg6 16. g3 Rf8 17. Be2 Nb6 18. Qe6+ {1-0 (34) Horvath,D (2446)-Mikhailovsky,V (2228) Chess.com INT 2020}) 12... Be7 {[%emt 0:10:57]} 13. Bg2 {[%emt 0:07:57]} Nh5 {[%emt 0:16:42]} (13... a5 $14) 14. Nxg6 $16 {[%emt 0:01:12]} hxg6 {[%emt 0:00:05]} 15. Ne2 {[%emt 0:07:20]} (15. e4 $142) 15... O-O {[%emt 0:07:45]} 16. O-O {[%emt 0:06:02]} Nb6 {[%emt 0:04:52]} 17. e4 {[%emt 0:07:09][%cal Be3e4,Be4e5][%mdl 32]} Nc4 {[%emt 0:00:05]} 18. Be1 {[%emt 0:01:30]} Nf6 {[%emt 0:03:15]} 19. e5 {[%emt 0:08:02]} Ne8 {[%emt 0:05:02]} 20. f4 {[%emt 0:06:50][%cal Bf3f4,Bf4f5][%mdl 32]} Nc7 {[%emt 0:00:17]} 21. g4 {[%emt 0:05:45]} a5 {[%emt 0:01:22]} 22. f5 {[%emt 0:02:50]} Bg5 {[%emt 0:00:06]} 23. Rxc4 {[%emt 0:13:58]} dxc4 {[%emt 0:00:05]} 24. Qxc4 {[%emt 0:00:11]} Qd8 {[%emt 0:07:06]} 25. Nf4 {[%emt 0:04:20] Prevents Nd5. White is more active.} (25. fxg6 $16 Qd7 26. Rf5) 25... gxf5 {[%emt 0:13:11]} (25... Bxf4 $15 26. Rxf4 Nd5) 26. gxf5 $11 {[%emt 0:00:04][%cal Of5f6]} Bxf4 {[%emt 0:01:31]} 27. Rxf4 {[%emt 0:00:02] Black must now prevent f6.} Qg5 {[%emt 0:00:08]} (27... Nd5 $11 {keeps the balance.} 28. Bh4 Qb6) 28. Bd2 $1 $16 {[%emt 0:07:39][%mdl 1024] White has strong compensation.} ({Weaker is} 28. Bg3 a4 $15) 28... Nd5 {[%emt 0:03:28]} 29. Rf2 {[%emt 0:01:25]} ({White must play} 29. h4 $1 $16 {[%cal Rh4g5]} Qg3 30. Re4) 29... Qh5 {[%emt 0:00:38]} 30. h3 {[%emt 0:00:56]} Rfe8 {[%emt 0:06:07]} (30... Qh4 $11) 31. Rf3 $2 {[%emt 0:02:04]} (31. Qd3 $1 $16 {and life is bright.}) 31... Qh4 $36 {[%emt 0:01:11][%cal Oe8e5][%mdl 2048] Black is in control.} 32. Qd3 {[%emt 0:00:53] [#] Rg3 is the strong threat.} Rad8 $1 {[%emt 0:01:39] aiming for ...Nb4.} 33. a3 {[%emt 0:01:04] [#] Against Nb4} c5 $1 {[%emt 0:03:05]} 34. dxc5 {[%emt 0:00:31]} Rxe5 {[%emt 0:00:15]} 35. Bxa5 {[%emt 0:00:28]} b6 {[%emt 0:01:27]} 36. cxb6 {[%emt 0:00:15] [#]} Nxb6 {[%emt 0:00:06][%mdl 512]} 37. Qc3 {[%emt 0:00:20]} Qf6 {[%emt 0:01:49]} 38. b4 {[%emt 0:01:33]} (38. Rf1 {was necessary.}) 38... Nd5 $4 {[%emt 0:01:10][%mdl 8192]} (38... Rc8 $19 39. Qd2 Rd5) 39. Bxd8 $18 {[%emt 0:00:00] This bishop pair is nice.} Nxc3 {[%emt 0:02:49]} 40. Bxf6 {[%emt 0:00:00]} Ne2+ {[%emt 0:00:04]} 41. Kf2 {[%emt 0:30:19]} gxf6 {[%emt 0:30:08][%mdl 4096] Endgame KRB-KRN} 42. Re3 {[%emt 0:00:00] Threatening mate with Rxe5.} Nf4 {[%emt 0:00:00]} 43. Rxe5 {[%emt 0:00:00]} Nd3+ {[%emt 0:00:00]} 44. Ke3 {[%emt 0:00:00] White mates.} Nxe5 {[%emt 0:00:00] KB-KN} 45. b5 {[%emt 0:00:00][%cal Bb4b5,Bb5b6,Bb6b7][%mdl 32]} Kf8 {[%emt 0:00:00]} 46. Kd4 {[%emt 0:00:00]} Ke7 {[%emt 0:00:00]} 47. Kc5 {[%emt 0:00:00]} Kd8 {[%emt 0:00:00]} 48. b6 {[%emt 0:00:00]} Nd7+ {[%emt 0:00:00]} 49. Kc6 {[%emt 0:00:00]} Ne5+ {[%emt 0:00:00]} 50. Kb7 {[%emt 0:00:00]} Nc4 {[%emt 0:00:00]} 51. Ka7 {[%emt 0:00:00]} Nxa3 {[%emt 0:00:00]} 52. b7 {[%emt 0:00:00]} Nb5+ {[%emt 0:00:00]} 53. Kb6 {[%emt 0:00:00] White used his chance.  Weighted Error Value: White=0.29 (precise) /Black=0.44} 1-0